[Event "Torneo Nuevo Centro. Jornada 10"]
[Site "Chess.com"]
[Date "2020.08.21"]
[Round "8"]
[White "Méndez Giménez , Néstor Emmanuel"]
[Black "Cebolla Ruiz, David"]
[Result "0-1"]
[WhiteElo "1247"]
[BlackElo "1549"]
[TimeControl "180+2"]
[EndTime "11:58:06 PDT"]
[Termination "Victoria de Dabelcebolla por jaque mate"]

1. e4 {[%clk 0:03:01.9]} 1... c6 {[%clk 0:02:58.8]} 2. Nc3 {[%clk 0:02:59.8]}
2... d5 {[%clk 0:02:59.3]} 3. exd5 {[%clk 0:03:00]} 3... cxd5 {[%clk 0:03:00.2]}
4. Bb5+ {[%clk 0:02:57.5]} 4... Bd7 {[%clk 0:02:54.1]} 5. Bxd7+ {[%clk
0:02:56.4]} 5... Qxd7 {[%clk 0:02:53.4]} 6. Nf3 {[%clk 0:02:56.9]} 6... Nf6
{[%clk 0:02:53.1]} 7. O-O {[%clk 0:02:57.6]} 7... Nc6 {[%clk 0:02:53.4]} 8. d4
{[%clk 0:02:58.3]} 8... e6 {[%clk 0:02:54.3]} 9. Be3 {[%clk 0:02:58.7]} 9... Be7
{[%clk 0:02:51.9]} 10. Bf4 {[%clk 0:02:58]} 10... O-O {[%clk 0:02:52.1]} 11. Ne5
{[%clk 0:02:57.6]} 11... Nxe5 {[%clk 0:02:51.7]} 12. Bxe5 {[%clk 0:02:57.7]}
12... Rac8 {[%clk 0:02:50.1]} 13. Qd3 {[%clk 0:02:55.1]} 13... a6 {[%clk
0:02:48.1]} 14. Rfe1 {[%clk 0:02:48.1]} 14... Ng4 {[%clk 0:02:36.3]} 15. Qg3
{[%clk 0:02:38.3]} 15... Nxe5 {[%clk 0:02:35.3]} 16. Rxe5 {[%clk 0:02:37.1]}
16... Bd6 {[%clk 0:02:36.2]} 17. Rae1 {[%clk 0:02:17.8]} 17... Bxe5 {[%clk
0:02:36.5]} 18. Rxe5 {[%clk 0:02:15.8]} 18... f6 {[%clk 0:02:35.5]} 19. Re1
{[%clk 0:02:10.6]} 19... Rc4 {[%clk 0:02:34.9]} 20. Qd3 {[%clk 0:02:05.7]} 20...
Re8 {[%clk 0:02:25.3]} 21. b3 {[%clk 0:02:06]} 21... Rc6 {[%clk 0:02:23.3]} 22.
a4 {[%clk 0:02:05.4]} 22... Rec8 {[%clk 0:02:23.2]} 23. Ne2 {[%clk 0:02:00.7]}
23... Rxc2 {[%clk 0:02:22.4]} 24. Nf4 {[%clk 0:02:00]} 24... Rc1 {[%clk
0:02:17.5]} 25. Qe2 {[%clk 0:01:55.4]} 25... Rxe1+ {[%clk 0:02:13.4]} 26. Qxe1
{[%clk 0:01:54.5]} 26... Re8 {[%clk 0:02:11.7]} 27. h3 {[%clk 0:01:52.6]} 27...
e5 {[%clk 0:02:12.9]} 28. dxe5 {[%clk 0:01:52.4]} 28... fxe5 {[%clk 0:02:08.6]}
29. Nd3 {[%clk 0:01:49]} 29... e4 {[%clk 0:02:09]} 30. Nc5 {[%clk 0:01:46.6]}
30... Qc6 {[%clk 0:02:06.4]} 31. Qc3 {[%clk 0:01:39.5]} 31... b6 {[%clk
0:02:05.6]} 32. Nxe4 {[%clk 0:01:32.5]} 32... Qxc3 {[%clk 0:02:01]} 33. Nxc3
{[%clk 0:01:27.1]} 33... Re1+ {[%clk 0:02:01]} 34. Kh2 {[%clk 0:01:27.3]} 34...
d4 {[%clk 0:02:01.4]} 35. Nd5 {[%clk 0:01:25.6]} 35... b5 {[%clk 0:02:02.2]} 36.
axb5 {[%clk 0:01:25]} 36... axb5 {[%clk 0:02:03.1]} 37. Kg3 {[%clk 0:01:24]}
37... d3 {[%clk 0:02:03.2]} 38. Nc3 {[%clk 0:01:20.6]} 38... d2 {[%clk
0:02:04.1]} 39. Kf3 {[%clk 0:01:18.7]} 39... d1=Q+ {[%clk 0:02:04.3]} 40. Nxd1
{[%clk 0:01:17.8]} 40... Rxd1 {[%clk 0:02:05.1]} 41. Ke3 {[%clk 0:01:19.7]}
41... Rb1 {[%clk 0:01:56.2]} 42. Kd4 {[%clk 0:01:19.4]} 42... Rxb3 {[%clk
0:01:56.8]} 43. Ke4 {[%clk 0:01:17.9]} 43... Rc3 {[%clk 0:01:56.8]} 44. Kd4
{[%clk 0:01:15.9]} 44... Rc8 {[%clk 0:01:57.6]} 45. f4 {[%clk 0:01:14]} 45... b4
{[%clk 0:01:57.3]} 46. g4 {[%clk 0:01:14.9]} 46... b3 {[%clk 0:01:58.2]} 47. h4
{[%clk 0:01:13.9]} 47... b2 {[%clk 0:01:59.4]} 48. g5 {[%clk 0:01:13.8]} 48...
b1=Q {[%clk 0:01:59.3]} 49. f5 {[%clk 0:01:14.4]} 49... Qd1+ {[%clk 0:02:00.3]}
50. Ke3 {[%clk 0:01:12.6]} 50... Re8+ {[%clk 0:02:01.1]} 51. Kf2 {[%clk
0:01:03.1]} 51... Re2+ {[%clk 0:01:59.9]} 52. Kf3 {[%clk 0:01:03.1]} 52... Qd3+
{[%clk 0:02:01.2]} 53. Kg4 {[%clk 0:01:00]} 53... Re4+ {[%clk 0:02:02.8]} 54.
Kh5 {[%clk 0:00:59.5]} 54... Qf3# {[%clk 0:02:04.2]} 0

[Event "Torneo Nuevo Centro. Jornada 10"]
[Site "Chess.com"]
[Date "2020.08.21"]
[Round "8"]
[White "Valmaña Cantó, Jaime"]
[Black "Bosch Jordà, Ricard"]
[Result "1-0"]
[WhiteElo "2357"]
[BlackElo "1939"]
[TimeControl "180+2"]
[EndTime "11:58:27 PDT"]
[Termination "Victoria de barberbirborbur por abandono"]

1. e4 {[%clk 0:03:01.9]} 1... c6 {[%clk 0:02:57.7]} 2. Nc3 {[%clk 0:03:00.4]}
2... d5 {[%clk 0:02:58.5]} 3. Nf3 {[%clk 0:03:01.6]} 3... dxe4 {[%clk
0:02:55.5]} 4. Nxe4 {[%clk 0:03:02.6]} 4... Nd7 {[%clk 0:02:56.5]} 5. Bc4 {[%clk
0:02:59.8]} 5... g6 {[%clk 0:02:54.9]} 6. d4 {[%clk 0:02:46.1]} 6... Bg7 {[%clk
0:02:50.8]} 7. Bxf7+ {[%clk 0:02:36.4]} 7... Kxf7 {[%clk 0:02:50.2]} 8. Neg5+
{[%clk 0:02:37.1]} 8... Ke8 {[%clk 0:02:49.2]} 9. Ne6 {[%clk 0:02:37]} 9... Qb6
{[%clk 0:01:29.4]} 10. Bf4 {[%clk 0:02:34.1]} 10... Bh6 {[%clk 0:01:07.7]} 11.
Nc7+ {[%clk 0:02:16.5]} 11... Kd8 {[%clk 0:01:07.4]} 12. Ne6+ {[%clk 0:02:17.2]}
12... Ke8 {[%clk 0:01:08]} 13. Nc7+ {[%clk 0:02:18.6]} 13... Kd8 {[%clk
0:01:09.3]} 14. Nxa8 {[%clk 0:02:20.3]} 14... Qa5+ {[%clk 0:01:04.1]} 15. Bd2
{[%clk 0:02:09.8]} 15... Bxd2+ {[%clk 0:01:03.7]} 16. Nxd2 {[%clk 0:02:11.1]}
16... b6 {[%clk 0:01:00.9]} 17. O-O {[%clk 0:02:07.1]} 17... Bb7 {[%clk
0:01:01.5]} 18. Nc4 {[%clk 0:01:31.7]} 18... Qd5 {[%clk 0:00:45.4]} 19. Ne3
{[%clk 0:01:23.6]} 19... Qg5 {[%clk 0:00:44.4]} 20. Nxb6 {[%clk 0:01:09.5]}
20... axb6 {[%clk 0:00:44.4]} 21. a4 {[%clk 0:01:11.1]} 21... Ngf6 {[%clk
0:00:43.4]} 22. a5 {[%clk 0:01:12.2]} 22... bxa5 {[%clk 0:00:28.1]} 23. Qe1
{[%clk 0:01:12.7]} 23... Ke8 {[%clk 0:00:15.6]} 24. Rxa5 {[%clk 0:01:12.9]}
24... Qf4 {[%clk 0:00:12.4]} 25. Qb4 {[%clk 0:01:14.4]} 25... Qc7 {[%clk
0:00:07.6]} 26. Ra7 {[%clk 0:01:13.8]} 26... c5 {[%clk 0:00:07.1]} 27. Qxb7
{[%clk 0:01:14.4]} 27... Qxb7 {[%clk 0:00:05]} 28. Rxb7 {[%clk 0:01:16]} 28...
cxd4 {[%clk 0:00:06]} 29. Nc4 {[%clk 0:01:13.7]} 29... Kf7 {[%clk 0:00:03.3]}
30. Re1 {[%clk 0:01:11.4]} 30... Re8 {[%clk 0:00:03.3]} 31. Rb1 {[%clk
0:01:12.9]} 31... Nc5 {[%clk 0:00:02.4]} 32. Nd6+ {[%clk 0:01:12.3]} 32... Kf8
{[%clk 0:00:02.2]} 33. Nxe8 {[%clk 0:01:13]} 33... Nxb7 {[%clk 0:00:02.8]} 34.
Nxf6 {[%clk 0:01:14.1]} 34... exf6 {[%clk 0:00:03.6]} 35. Rd1 {[%clk 0:01:14.9]}
35... Nd6 {[%clk 0:00:02.8]} 36. Rxd4 {[%clk 0:01:15.9]} 36... Nb5 {[%clk
0:00:03.7]} 1

[Event "Torneo Nuevo Centro. Jornada 10"]
[Site "Chess.com"]
[Date "2020.08.21"]
[Round "8"]
[White "Miranda Calvo, Max Rodrigo"]
[Black "Birnoveanu, Petru"]
[Result "0-1"]
[WhiteElo "1353"]
[BlackElo "1717"]
[TimeControl "180+2"]
[EndTime "11:58:33 PDT"]
[Termination "Victoria de piculet por tiempo"]

1. e4 {[%clk 0:03:01.5]} 1... e6 {[%clk 0:02:59.8]} 2. d4 {[%clk 0:03:01.5]}
2... d5 {[%clk 0:03:00.8]} 3. exd5 {[%clk 0:03:01.1]} 3... exd5 {[%clk 0:03:01]}
4. Nc3 {[%clk 0:03:00]} 4... c6 {[%clk 0:02:48.7]} 5. Bd3 {[%clk 0:02:45.7]}
5... Bd6 {[%clk 0:02:48]} 6. Nge2 {[%clk 0:02:40.5]} 6... Ne7 {[%clk 0:02:41.3]}
7. O-O {[%clk 0:02:38]} 7... Qc7 {[%clk 0:02:40.8]} 8. Ng3 {[%clk 0:02:36.2]}
8... h5 {[%clk 0:02:34.2]} 9. h4 {[%clk 0:02:26.1]} 9... Bxg3 {[%clk 0:02:29.4]}
10. fxg3 {[%clk 0:02:24]} 10... Qxg3 {[%clk 0:02:29.9]} 11. Bg5 {[%clk 0:02:18]}
11... f6 {[%clk 0:02:28]} 12. Rf3 {[%clk 0:02:14.5]} 12... Qg4 {[%clk 0:02:25]}
13. Bd2 {[%clk 0:01:42.2]} 13... Qxh4 {[%clk 0:02:23]} 14. Qe2 {[%clk
0:01:38.1]} 14... Bg4 {[%clk 0:02:06.6]} 15. Re1 {[%clk 0:01:27.3]} 15... f5
{[%clk 0:01:51.4]} 16. Qxe7+ {[%clk 0:00:58.5]} 16... Qxe7 {[%clk 0:01:50.7]}
17. Rxe7+ {[%clk 0:00:58.3]} 17... Kxe7 {[%clk 0:01:51.7]} 18. Re3+ {[%clk
0:00:59.7]} 18... Kf6 {[%clk 0:01:49.2]} 19. Ne2 {[%clk 0:00:31.4]} 19... Nd7
{[%clk 0:01:35.8]} 20. Ng3 {[%clk 0:00:21]} 20... g6 {[%clk 0:01:30.9]} 21. Re1
{[%clk 0:00:18.5]} 21... Raf8 {[%clk 0:01:29.9]} 22. Rf1 {[%clk 0:00:19.9]}
22... Kg7 {[%clk 0:01:29.1]} 23. c4 {[%clk 0:00:15.9]} 23... Nf6 {[%clk
0:01:27.7]} 24. cxd5 {[%clk 0:00:15.5]} 24... Nxd5 {[%clk 0:01:28.4]} 25. Bc4
{[%clk 0:00:16.1]} 25... Re8 {[%clk 0:01:27.8]} 26. Bg5 {[%clk 0:00:07.2]} 26...
Ne3 {[%clk 0:01:12.3]} 27. Bxe3 {[%clk 0:00:05.2]} 27... Rxe3 {[%clk 0:01:11.4]}
28. Kh2 {[%clk 0:00:05]} 28... h4 {[%clk 0:01:09]} 29. Nh1 {[%clk 0:00:03]}
29... Be2 {[%clk 0:01:08.2]} 30. Bxe2 {[%clk 0:00:03.1]} 30... Rxe2 {[%clk
0:01:08.2]} 31. Kh3 {[%clk 0:00:02.6]} 31... Rxb2 {[%clk 0:01:06.3]} 32. a3
{[%clk 0:00:02.6]} 32... Rb3+ {[%clk 0:01:05.5]} 0

[Event "Torneo Nuevo Centro. Jornada 10"]
[Site "Chess.com"]
[Date "2020.08.21"]
[Round "8"]
[White "Roca Cruz, Rafael"]
[Black "Garcia, Jhoel"]
[Result "0-1"]
[WhiteElo "1824"]
[BlackElo "2386"]
[TimeControl "180+2"]
[EndTime "11:58:54 PDT"]
[Termination "Victoria de shoels por tiempo"]

1. d4 {[%clk 0:02:59.8]} 1... g6 {[%clk 0:02:59.7]} 2. c4 {[%clk 0:02:59.9]}
2... Bg7 {[%clk 0:03:01]} 3. Nc3 {[%clk 0:03:00.5]} 3... d6 {[%clk 0:03:02.5]}
4. e4 {[%clk 0:03:01.5]} 4... Nf6 {[%clk 0:03:03.6]} 5. Bg5 {[%clk 0:03:00.8]}
5... O-O {[%clk 0:03:03.7]} 6. Qd2 {[%clk 0:03:01.2]} 6... c5 {[%clk 0:03:04.1]}
7. d5 {[%clk 0:03:02]} 7... e6 {[%clk 0:03:05.6]} 8. Bd3 {[%clk 0:03:01.9]} 8...
exd5 {[%clk 0:03:06.7]} 9. cxd5 {[%clk 0:02:55.7]} 9... a6 {[%clk 0:03:06.9]}
10. a4 {[%clk 0:02:53.1]} 10... Nbd7 {[%clk 0:03:08.2]} 11. Nf3 {[%clk
0:02:47.7]} 11... Qc7 {[%clk 0:03:08.1]} 12. O-O {[%clk 0:02:46.1]} 12... c4
{[%clk 0:02:57.1]} 13. Bc2 {[%clk 0:02:46.7]} 13... Nc5 {[%clk 0:02:58.4]} 14.
Bh6 {[%clk 0:02:41.6]} 14... Bd7 {[%clk 0:02:55]} 15. Rfe1 {[%clk 0:02:40.7]}
15... Rfe8 {[%clk 0:02:48.7]} 16. Bxg7 {[%clk 0:02:38]} 16... Kxg7 {[%clk
0:02:50]} 17. h3 {[%clk 0:02:29.7]} 17... Kg8 {[%clk 0:02:43.1]} 18. Qh6 {[%clk
0:02:14.6]} 18... Qd8 {[%clk 0:02:24]} 19. e5 {[%clk 0:01:57.7]} 19... dxe5
{[%clk 0:02:21.6]} 20. Rxe5 {[%clk 0:01:58.1]} 20... Rxe5 {[%clk 0:02:13.7]} 21.
Nxe5 {[%clk 0:01:57.6]} 21... Qe7 {[%clk 0:02:15.1]} 22. f4 {[%clk 0:01:44.3]}
22... Re8 {[%clk 0:02:10.8]} 23. Rf1 {[%clk 0:01:21.6]} 23... Qd6 {[%clk
0:02:09.6]} 24. Qg5 {[%clk 0:00:48.5]} 24... Kg7 {[%clk 0:02:04]} 25. Ng4 {[%clk
0:00:36.5]} 25... Bxg4 {[%clk 0:01:57]} 26. hxg4 {[%clk 0:00:37.3]} 26... Nd3
{[%clk 0:01:55]} 27. Bxd3 {[%clk 0:00:28.6]} 27... cxd3 {[%clk 0:01:55.4]} 28.
f5 {[%clk 0:00:29.9]} 28... h6 {[%clk 0:01:21]} 29. Qd2 {[%clk 0:00:25.9]} 29...
Nxg4 {[%clk 0:01:17.6]} 30. Rf4 {[%clk 0:00:11.3]} 30... Re1+ {[%clk 0:00:53.8]}
31. Qxe1 {[%clk 0:00:03.9]} 31... Qxf4 {[%clk 0:00:54.8]} 32. f6+ {[%clk
0:00:05]} 32... Kh7 {[%clk 0:00:51.9]} 33. g3 {[%clk 0:00:02.1]} 33... d2 {[%clk
0:00:50.4]} 0

[Event "Torneo Nuevo Centro. Jornada 10"]
[Site "Chess.com"]
[Date "2020.08.21"]
[Round "8"]
[White "Rabbani Perez, Ayoub "]
[Black "Perrot, Fabien "]
[Result "0-1"]
[WhiteElo "391"]
[BlackElo "1114"]
[TimeControl "180+2"]
[EndTime "11:58:54 PDT"]
[Termination "Victoria de InspiredMinds por jaque mate"]

1. g4 {[%clk 0:02:58.3]} 1... d5 {[%clk 0:02:49.7]} 2. g5 {[%clk 0:02:58]} 2...
e5 {[%clk 0:02:49.3]} 3. g6 {[%clk 0:02:56.2]} 3... hxg6 {[%clk 0:02:47.9]} 4.
Nf3 {[%clk 0:02:53.9]} 4... e4 {[%clk 0:02:43.9]} 5. Nd4 {[%clk 0:02:52.9]} 5...
f5 {[%clk 0:02:30.7]} 6. Nb3 {[%clk 0:02:47.4]} 6... Be6 {[%clk 0:02:19.4]} 7.
Na5 {[%clk 0:02:44.7]} 7... c6 {[%clk 0:02:14.6]} 8. Nxb7 {[%clk 0:02:43.7]}
8... Qc7 {[%clk 0:02:11.1]} 9. Nc5 {[%clk 0:02:38.2]} 9... Qd6 {[%clk
0:02:10.7]} 10. Nd3 {[%clk 0:02:35]} 10... Nd7 {[%clk 0:02:10.8]} 11. f3 {[%clk
0:02:28.5]} 11... exd3 {[%clk 0:02:11.7]} 12. exd3 {[%clk 0:02:28.8]} 12... Rxh2
{[%clk 0:02:05]} 13. Rxh2 {[%clk 0:02:28.3]} 13... Qxh2 {[%clk 0:02:06.4]} 14.
Bg2 {[%clk 0:02:24]} 14... Qg1+ {[%clk 0:02:04]} 15. Ke2 {[%clk 0:02:24]} 15...
Qxg2+ {[%clk 0:02:04.5]} 16. Ke3 {[%clk 0:02:18]} 16... Qg5+ {[%clk 0:01:53.2]}
17. Kd4 {[%clk 0:02:11.9]} 17... Qf4+ {[%clk 0:01:43.4]} 18. Kc3 {[%clk
0:02:04.6]} 18... Qc4+ {[%clk 0:01:40.8]} 19. dxc4 {[%clk 0:02:01]} 19... dxc4
{[%clk 0:01:41.2]} 20. Kd4 {[%clk 0:01:59.2]} 20... Bc5+ {[%clk 0:01:36.4]} 21.
Kc3 {[%clk 0:01:57.8]} 21... Ngf6 {[%clk 0:01:30.3]} 22. d4 {[%clk 0:01:48.2]}
22... Bb6 {[%clk 0:01:21.2]} 23. d5 {[%clk 0:01:49.8]} 23... cxd5 {[%clk
0:01:18.4]} 24. f4 {[%clk 0:01:40]} 24... Ne4+ {[%clk 0:01:14.2]} 25. Kb4 {[%clk
0:01:26]} 25... Bc5+ {[%clk 0:00:54.2]} 26. Ka4 {[%clk 0:01:20.8]} 26... Nb6+
{[%clk 0:00:44.2]} 27. Kb5 {[%clk 0:01:14.4]} 27... Bd7+ {[%clk 0:00:40.9]} 28.
Ka6 {[%clk 0:01:07.3]} 28... Bc8+ {[%clk 0:00:28.9]} 29. Kb5 {[%clk 0:01:04.2]}
29... a6+ {[%clk 0:00:25.4]} 30. Kc6 {[%clk 0:01:02.9]} 30... Bd7+ {[%clk
0:00:20.7]} 31. Kb7 {[%clk 0:00:55.7]} 31... Bc8+ {[%clk 0:00:21.8]} 32. Kc6
{[%clk 0:00:53.4]} 32... Bd7+ {[%clk 0:00:22.9]} 33. Kc7 {[%clk 0:00:47.5]}
33... Rc8+ {[%clk 0:00:20.5]} 34. Kb7 {[%clk 0:00:47]} 34... Nd6+ {[%clk
0:00:19.8]} 35. Ka7 {[%clk 0:00:46.2]} 35... Ra8# {[%clk 0:00:18.2]} 0

[Event "Torneo Nuevo Centro. Jornada 10"]
[Site "Chess.com"]
[Date "2020.08.21"]
[Round "8"]
[White "Aguado, Pablo Luis"]
[Black "Buenafe Moya, Javier"]
[Result "0-1"]
[WhiteElo "1929"]
[BlackElo "1867"]
[TimeControl "180+2"]
[EndTime "11:59:18 PDT"]
[Termination "Victoria de JavierBuenafeMoya por tiempo"]

1. d4 {[%clk 0:03:01.9]} 1... Nf6 {[%clk 0:02:51.7]} 2. c4 {[%clk 0:02:59.3]}
2... e6 {[%clk 0:02:52.1]} 3. Nc3 {[%clk 0:02:58.1]} 3... Bb4 {[%clk 0:02:51.4]}
4. Bd2 {[%clk 0:02:59.2]} 4... O-O {[%clk 0:02:50.5]} 5. e3 {[%clk 0:02:50.3]}
5... c5 {[%clk 0:02:49.7]} 6. Nf3 {[%clk 0:02:49.8]} 6... d5 {[%clk 0:02:47.6]}
7. cxd5 {[%clk 0:02:48.6]} 7... Bxc3 {[%clk 0:02:45.3]} 8. Bxc3 {[%clk
0:02:48.2]} 8... Qxd5 {[%clk 0:02:45.9]} 9. dxc5 {[%clk 0:02:46.4]} 9... Qxc5
{[%clk 0:02:43.7]} 10. Bxf6 {[%clk 0:02:45.6]} 10... gxf6 {[%clk 0:02:44.1]} 11.
Be2 {[%clk 0:02:45.8]} 11... Nc6 {[%clk 0:02:39.4]} 12. O-O {[%clk 0:02:46.3]}
12... Kh8 {[%clk 0:02:38.8]} 13. Rc1 {[%clk 0:02:44.7]} 13... Qe7 {[%clk
0:02:29.7]} 14. Bd3 {[%clk 0:02:42.5]} 14... Rg8 {[%clk 0:02:29]} 15. Bb1 {[%clk
0:02:40.6]} 15... f5 {[%clk 0:02:28.9]} 16. Nd4 {[%clk 0:02:40.1]} 16... Bd7
{[%clk 0:02:19.9]} 17. f3 {[%clk 0:02:00.5]} 17... Rg7 {[%clk 0:02:09.3]} 18.
Rf2 {[%clk 0:01:54.8]} 18... Rag8 {[%clk 0:02:08.7]} 19. Qd2 {[%clk 0:01:48.1]}
19... Qf6 {[%clk 0:01:51.2]} 20. Nxf5 {[%clk 0:01:39.7]} 20... exf5 {[%clk
0:01:50]} 21. Qxd7 {[%clk 0:01:40.5]} 21... f4 {[%clk 0:01:44.9]} 22. exf4
{[%clk 0:01:30]} 22... Qxf4 {[%clk 0:01:42.9]} 23. Rcf1 {[%clk 0:01:08.2]} 23...
Qe3 {[%clk 0:01:36.2]} 24. Kh1 {[%clk 0:00:54.8]} 24... f6 {[%clk 0:01:34.4]}
25. Qf5 {[%clk 0:00:51.5]} 25... Re8 {[%clk 0:01:24]} 26. h3 {[%clk 0:00:39.1]}
26... Nd4 {[%clk 0:01:13.2]} 27. Qd3 {[%clk 0:00:31.5]} 27... Qf4 {[%clk
0:00:47.1]} 28. Rd2 {[%clk 0:00:21.8]} 28... Rd8 {[%clk 0:00:32.1]} 29. Qc3
{[%clk 0:00:18.3]} 29... Rgd7 {[%clk 0:00:29.8]} 30. Rfd1 {[%clk 0:00:13.5]}
30... Qe5 {[%clk 0:00:14.7]} 31. Rd3 {[%clk 0:00:05.5]} 31... Rd6 {[%clk
0:00:14.3]} 32. Qd2 {[%clk 0:00:06.4]} 32... R8d7 {[%clk 0:00:14.5]} 33. Qe2
{[%clk 0:00:07.1]} 33... Nxe2 {[%clk 0:00:14.8]} 0

[Event "Torneo Nuevo Centro. Jornada 10"]
[Site "Chess.com"]
[Date "2020.08.21"]
[Round "8"]
[White "Yatseta Fernandez, Marc Kazymyr"]
[Black "Hernández Tomás, Efrén"]
[Result "1-0"]
[WhiteElo "1459"]
[BlackElo "1105"]
[TimeControl "180+2"]
[EndTime "11:59:23 PDT"]
[Termination "Victoria de K_73 por jaque mate"]

1. d4 {[%clk 0:02:59.8]} 1... d5 {[%clk 0:03:00.1]} 2. c4 {[%clk 0:03:00.9]}
2... c5 {[%clk 0:03:00.2]} 3. dxc5 {[%clk 0:02:48.4]} 3... e6 {[%clk 0:02:56.3]}
4. Nc3 {[%clk 0:02:40.4]} 4... Bxc5 {[%clk 0:02:51.9]} 5. cxd5 {[%clk
0:02:40.8]} 5... exd5 {[%clk 0:02:52.2]} 6. Qxd5 {[%clk 0:02:36.8]} 6... Qxd5
{[%clk 0:02:48.2]} 7. Nxd5 {[%clk 0:02:36.8]} 7... Na6 {[%clk 0:02:41.6]} 8. e4
{[%clk 0:02:31.3]} 8... Be6 {[%clk 0:02:37.2]} 9. Bxa6 {[%clk 0:02:26.8]} 9...
Bxd5 {[%clk 0:02:37.4]} 10. exd5 {[%clk 0:02:25.7]} 10... bxa6 {[%clk
0:02:37.6]} 11. Nf3 {[%clk 0:02:25.5]} 11... Nf6 {[%clk 0:02:37.8]} 12. O-O
{[%clk 0:02:24.6]} 12... Nxd5 {[%clk 0:02:37.6]} 13. Re1+ {[%clk 0:02:24.9]}
13... Ne7 {[%clk 0:02:35.7]} 14. Bf4 {[%clk 0:02:07.1]} 14... O-O {[%clk
0:02:33]} 15. Rac1 {[%clk 0:02:07.1]} 15... Bb4 {[%clk 0:02:29.2]} 16. Re4
{[%clk 0:02:05]} 16... Nd5 {[%clk 0:02:22]} 17. Bg3 {[%clk 0:01:47.7]} 17...
Rac8 {[%clk 0:02:13.9]} 18. Rec4 {[%clk 0:01:38.9]} 18... Rxc4 {[%clk
0:02:10.6]} 19. Rxc4 {[%clk 0:01:40.7]} 19... Rd8 {[%clk 0:02:08.6]} 20. Rd4
{[%clk 0:01:22.3]} 20... Bc5 {[%clk 0:02:03.5]} 21. Rd1 {[%clk 0:01:19.2]} 21...
Kf8 {[%clk 0:01:59.6]} 22. Ng5 {[%clk 0:01:11.6]} 22... h6 {[%clk 0:01:56.9]}
23. Ne4 {[%clk 0:01:10.2]} 23... Ke7 {[%clk 0:01:56.8]} 24. Nxc5 {[%clk
0:01:06.1]} 24... Nf6 {[%clk 0:01:43.7]} 25. Rxd8 {[%clk 0:01:04.4]} 25... Kxd8
{[%clk 0:01:44.1]} 26. Nxa6 {[%clk 0:01:04.9]} 26... Nd5 {[%clk 0:01:44.5]} 27.
Kf1 {[%clk 0:01:00.1]} 27... Ke7 {[%clk 0:01:41]} 28. Nc5 {[%clk 0:00:59.7]}
28... Nb4 {[%clk 0:01:40.8]} 29. a3 {[%clk 0:00:58.5]} 29... Nc2 {[%clk
0:01:41.4]} 30. Ke2 {[%clk 0:00:48.9]} 30... a5 {[%clk 0:01:40]} 31. Kd2 {[%clk
0:00:46.4]} 31... Nd4 {[%clk 0:01:40.3]} 32. Be5 {[%clk 0:00:42.9]} 32... Nf5
{[%clk 0:01:31.2]} 33. g4 {[%clk 0:00:37.6]} 33... f6 {[%clk 0:01:23.8]} 34.
gxf5 {[%clk 0:00:36.9]} 34... fxe5 {[%clk 0:01:24.3]} 35. b4 {[%clk 0:00:33.9]}
35... axb4 {[%clk 0:01:24.2]} 36. axb4 {[%clk 0:00:35.6]} 36... Kd6 {[%clk
0:01:22.5]} 37. Kd3 {[%clk 0:00:33.9]} 37... Kd5 {[%clk 0:01:19.2]} 38. f3
{[%clk 0:00:33]} 38... h5 {[%clk 0:01:16.5]} 39. h4 {[%clk 0:00:33.6]} 39... Kd6
{[%clk 0:01:12.7]} 40. Kc4 {[%clk 0:00:32.9]} 40... Kc6 {[%clk 0:01:13.5]} 41.
b5+ {[%clk 0:00:31.5]} 41... Kb6 {[%clk 0:01:13.1]} 42. Nd7+ {[%clk 0:00:31.3]}
42... Kc7 {[%clk 0:01:12.2]} 43. Nxe5 {[%clk 0:00:32.4]} 43... Kb6 {[%clk
0:01:11.3]} 44. Nd7+ {[%clk 0:00:32.5]} 44... Kc7 {[%clk 0:01:11.7]} 45. Nf8
{[%clk 0:00:30.9]} 45... Kb6 {[%clk 0:01:11.5]} 46. Ne6 {[%clk 0:00:26.4]} 46...
g5 {[%clk 0:01:10.2]} 47. fxg6 {[%clk 0:00:26.7]} 47... Kb7 {[%clk 0:01:09]} 48.
g7 {[%clk 0:00:26.9]} 48... Kb6 {[%clk 0:01:10]} 49. g8=Q {[%clk 0:00:25.9]}
49... Ka5 {[%clk 0:01:10.9]} 50. Qa8+ {[%clk 0:00:25.4]} 50... Kb6 {[%clk
0:01:11.3]} 51. Qa6# {[%clk 0:00:25.6]} 1

[Event "Torneo Nuevo Centro. Jornada 10"]
[Site "Chess.com"]
[Date "2020.08.21"]
[Round "8"]
[White "Valverde Alcaide, Miguel Alejandro"]
[Black "Ortiz Benavent, Alba"]
[Result "0-1"]
[WhiteElo "906"]
[BlackElo "1207"]
[TimeControl "180+2"]
[EndTime "11:59:27 PDT"]
[Termination "Victoria de or20 por tiempo"]

1. e4 {[%clk 0:03:00.5]} 1... e5 {[%clk 0:03:00.5]} 2. Nf3 {[%clk 0:02:57]} 2...
Nc6 {[%clk 0:03:01]} 3. Bc4 {[%clk 0:02:56.2]} 3... Bc5 {[%clk 0:02:59.1]} 4.
O-O {[%clk 0:02:53.2]} 4... d6 {[%clk 0:02:59.7]} 5. Bxf7+ {[%clk 0:02:51.7]}
5... Kxf7 {[%clk 0:02:58.3]} 6. Ng5+ {[%clk 0:02:51.3]} 6... Qxg5 {[%clk
0:02:57.3]} 7. d4 {[%clk 0:02:46.3]} 7... Qg6 {[%clk 0:02:51.9]} 8. dxc5 {[%clk
0:02:44.1]} 8... Bh3 {[%clk 0:02:48.3]} 9. Qf3+ {[%clk 0:02:37.5]} 9... Nf6
{[%clk 0:02:35.4]} 10. Kh1 {[%clk 0:02:33.6]} 10... Bg4 {[%clk 0:02:30.2]} 11.
Qg3 {[%clk 0:02:13.1]} 11... Be2 {[%clk 0:02:20.5]} 12. Qxg6+ {[%clk 0:02:10.1]}
12... hxg6 {[%clk 0:02:20.4]} 13. Re1 {[%clk 0:02:11.4]} 13... Bc4 {[%clk
0:02:13.3]} 14. Nc3 {[%clk 0:02:07.8]} 14... Rh7 {[%clk 0:02:08.5]} 15. Bg5
{[%clk 0:02:06.6]} 15... Ne7 {[%clk 0:02:01.7]} 16. b3 {[%clk 0:01:58.4]} 16...
Be6 {[%clk 0:02:00]} 17. Rf1 {[%clk 0:01:52.7]} 17... Rah8 {[%clk 0:01:58.3]}
18. h4 {[%clk 0:01:51.7]} 18... Rh5 {[%clk 0:01:42.4]} 19. Kg1 {[%clk
0:01:41.7]} 19... Nh7 {[%clk 0:01:42.4]} 20. g4 {[%clk 0:01:34.8]} 20... Bxg4
{[%clk 0:01:38]} 21. f4 {[%clk 0:01:17.9]} 21... Nxg5 {[%clk 0:01:36.3]} 22.
fxg5+ {[%clk 0:01:11.7]} 22... Ke6 {[%clk 0:01:29.9]} 23. Rf2 {[%clk 0:00:49.9]}
23... Rxh4 {[%clk 0:01:29.8]} 24. Kg2 {[%clk 0:00:45.9]} 24... Rh2+ {[%clk
0:01:24.6]} 25. Kg3 {[%clk 0:00:46.7]} 25... Rxf2 {[%clk 0:01:16.5]} 26. Kxf2
{[%clk 0:00:39.7]} 26... Rh3 {[%clk 0:01:16.2]} 27. Rg1 {[%clk 0:00:38.2]} 27...
Rxc3 {[%clk 0:01:11.9]} 28. Rxg4 {[%clk 0:00:37.7]} 28... Rxc2+ {[%clk
0:01:12.7]} 29. Ke3 {[%clk 0:00:38.5]} 29... Rxa2 {[%clk 0:01:13.4]} 30. Kd3
{[%clk 0:00:34.5]} 30... Rf2 {[%clk 0:01:11.5]} 31. Ke3 {[%clk 0:00:28.5]} 31...
Rf4 {[%clk 0:01:11.2]} 32. Rg1 {[%clk 0:00:25.3]} 32... Rh4 {[%clk 0:01:04.3]}
33. Rf1 {[%clk 0:00:23.4]} 33... Rf4 {[%clk 0:01:04.1]} 34. Rh1 {[%clk
0:00:19.7]} 34... Kf7 {[%clk 0:01:03.7]} 35. Rh8 {[%clk 0:00:13.4]} 35... dxc5
{[%clk 0:00:50.9]} 36. Ra8 {[%clk 0:00:05.6]} 36... a6 {[%clk 0:00:50.8]} 37.
Ra7 {[%clk 0:00:05.7]} 37... b6 {[%clk 0:00:49.6]} 38. Rxa6 {[%clk 0:00:02.6]}
38... Nc6 {[%clk 0:00:42.9]} 0